[Event "*** Titled Tuesday Blitz"]
[Site "Chess.com"]
[Date "2019.11.05"]
[Round "5"]
[White "Sanan_Sjugirov"]
[Black "13MiRacLe"]
[Result "1-0"]
[WhiteElo "2964"]
[BlackElo "2611"]
[TimeControl "180+2"]
[EndTime "14:09:08 PST"]
[Termination "Sanan_Sjugirov won by checkmate"]

1. Nf3 {[%clk 0:03:01.9]} 1... Nf6 {[%clk 0:02:52.9]} 2. g3 {[%clk 0:03:01.2]}
2... g6 {[%clk 0:02:54.1]} 3. Bg2 {[%clk 0:03:01.3]} 3... Bg7 {[%clk 0:02:55.7]}
4. c4 {[%clk 0:03:02.4]} 4... d5 {[%clk 0:02:55.7]} 5. cxd5 {[%clk 0:03:02.1]}
5... Nxd5 {[%clk 0:02:57.6]} 6. Nc3 {[%clk 0:03:02.6]} 6... Nb6 {[%clk
0:02:58.5]} 7. h4 {[%clk 0:02:59.6]} 7... Nc6 {[%clk 0:02:36]} 8. h5 {[%clk
0:02:59.3]} 8... O-O {[%clk 0:02:34.4]} 9. d3 {[%clk 0:02:58.4]} 9... Bg4 {[%clk
0:02:06.5]} 10. hxg6 {[%clk 0:02:59.1]} 10... hxg6 {[%clk 0:02:07.3]} 11. Be3
{[%clk 0:02:46.7]} 11... e5 {[%clk 0:01:51.8]} 12. Qd2 {[%clk 0:02:46.1]} 12...
f6 {[%clk 0:01:18.5]} 13. Bh6 {[%clk 0:02:45.4]} 13... Rf7 {[%clk 0:01:15.9]}
14. Bxg7 {[%clk 0:02:45.8]} 14... Rxg7 {[%clk 0:01:17.8]} 15. Ne4 {[%clk
0:02:37.4]} 15... Nd5 {[%clk 0:01:15.6]} 16. Rc1 {[%clk 0:02:32.1]} 16... Bxf3
{[%clk 0:01:11.5]} 17. Bxf3 {[%clk 0:02:32.8]} 17... Nd4 {[%clk 0:01:12.7]} 18.
Bg2 {[%clk 0:02:32.7]} 18... c6 {[%clk 0:01:13.8]} 19. Nc5 {[%clk 0:02:16.7]}
19... Qe7 {[%clk 0:00:28.5]} 20. e3 {[%clk 0:01:47.8]} 20... Ne6 {[%clk
0:00:26.1]} 21. Ne4 {[%clk 0:01:31.8]} 21... Rh7 {[%clk 0:00:19]} 22. Rxh7
{[%clk 0:01:31.1]} 22... Kxh7 {[%clk 0:00:20.9]} 23. Nc3 {[%clk 0:01:23.1]}
23... Rd8 {[%clk 0:00:20.6]} 24. Nxd5 {[%clk 0:01:23.5]} 24... cxd5 {[%clk
0:00:22]} 25. Qa5 {[%clk 0:01:21.2]} 25... b6 {[%clk 0:00:21.7]} 26. Qb5 {[%clk
0:01:21.5]} 26... d4 {[%clk 0:00:19.6]} 27. e4 {[%clk 0:01:15.5]} 27... Nc5
{[%clk 0:00:19.7]} 28. b4 {[%clk 0:01:05.4]} 28... Ne6 {[%clk 0:00:14.4]} 29.
Ke2 {[%clk 0:01:01.6]} 29... Rd7 {[%clk 0:00:14.6]} 30. Bh3 {[%clk 0:00:49.9]}
30... Rc7 {[%clk 0:00:15.3]} 31. Rxc7 {[%clk 0:00:43.9]} 31... Nxc7 {[%clk
0:00:17.2]} 32. Qc6 {[%clk 0:00:45.3]} 32... Ne8 {[%clk 0:00:18.2]} 33. a3
{[%clk 0:00:41]} 33... Kg7 {[%clk 0:00:19.2]} 34. Be6 {[%clk 0:00:25.3]} 34...
Kf8 {[%clk 0:00:16.6]} 35. Bb3 {[%clk 0:00:22.4]} 35... Qd6 {[%clk 0:00:11]} 36.
Qc4 {[%clk 0:00:22.6]} 36... Ke7 {[%clk 0:00:05.6]} 37. Qf7+ {[%clk 0:00:19.9]}
37... Kd8 {[%clk 0:00:07.1]} 38. Qxg6 {[%clk 0:00:18.8]} 38... Qc6 {[%clk
0:00:05.4]} 39. Qg8 {[%clk 0:00:11.5]} 39... Qc3 {[%clk 0:00:05.5]} 40. Qd5+
{[%clk 0:00:06.1]} 40... Ke7 {[%clk 0:00:06.4]} 41. Qe6+ {[%clk 0:00:06.4]}
41... Kd8 {[%clk 0:00:07.8]} 42. Qd5+ {[%clk 0:00:07.7]} 42... Ke7 {[%clk
0:00:08.7]} 43. Qf7+ {[%clk 0:00:08.8]} 43... Kd8 {[%clk 0:00:09.2]} 44. Bc4
{[%clk 0:00:09.3]} 44... Qb2+ {[%clk 0:00:07.1]} 45. Kf1 {[%clk 0:00:10.4]}
45... Qxa3 {[%clk 0:00:07]} 46. Bb5 {[%clk 0:00:10.4]} 46... Qc1+ {[%clk
0:00:08]} 47. Kg2 {[%clk 0:00:11.4]} 47... Nd6 {[%clk 0:00:09.2]} 48. Qd7#
{[%clk 0:00:12.1]} 1-0

[Event "*** Titled Tuesday Blitz"]
[Site "Chess.com"]
[Date "2019.11.05"]
[Round "5"]
[White "MissingLife"]
[Black "Alextorngren"]
[Result "0-1"]
[WhiteElo "2365"]
[BlackElo "2222"]
[TimeControl "180+2"]
[EndTime "14:09:17 PST"]
[Termination "Alextorngren won by resignation"]

1. Nf3 {[%clk 0:02:13.3]} 1... c5 {[%clk 0:02:57.4]} 2. g3 {[%clk 0:02:15.2]}
2... g6 {[%clk 0:02:58.1]} 3. d3 {[%clk 0:02:16]} 3... Bg7 {[%clk 0:02:59.1]} 4.
Nbd2 {[%clk 0:02:17.9]} 4... Nc6 {[%clk 0:02:58.7]} 5. e4 {[%clk 0:02:19.8]}
5... e5 {[%clk 0:02:57.5]} 6. Bg2 {[%clk 0:02:21.7]} 6... Nge7 {[%clk
0:02:58.4]} 7. O-O {[%clk 0:02:23.4]} 7... d6 {[%clk 0:02:58.2]} 8. a4 {[%clk
0:02:25.3]} 8... O-O {[%clk 0:02:52.5]} 9. Nc4 {[%clk 0:02:27.2]} 9... Be6
{[%clk 0:02:40.4]} 10. Ne3 {[%clk 0:02:29.1]} 10... h6 {[%clk 0:02:40.9]} 11. h4
{[%clk 0:02:25.9]} 11... Nd4 {[%clk 0:02:40.1]} 12. c3 {[%clk 0:02:25.7]} 12...
Nb3 {[%clk 0:02:36.5]} 13. Rb1 {[%clk 0:02:22.7]} 13... Nxc1 {[%clk 0:02:36.1]}
14. Rxc1 {[%clk 0:02:24.6]} 14... Nc6 {[%clk 0:02:28.2]} 15. Nd5 {[%clk
0:02:22.2]} 15... f5 {[%clk 0:02:23.1]} 16. b4 {[%clk 0:02:14.2]} 16... cxb4
{[%clk 0:02:18.8]} 17. cxb4 {[%clk 0:02:16.1]} 17... Bxd5 {[%clk 0:02:19.2]} 18.
exd5 {[%clk 0:02:17]} 18... Nxb4 {[%clk 0:02:20.8]} 19. Qb3 {[%clk 0:02:17.8]}
19... a5 {[%clk 0:02:20]} 20. Nd2 {[%clk 0:02:13.1]} 20... f4 {[%clk 0:01:58]}
21. Be4 {[%clk 0:02:08.3]} 21... Qd7 {[%clk 0:01:45.2]} 22. Kg2 {[%clk
0:02:07.4]} 22... Qg4 {[%clk 0:01:28.3]} 23. Bf3 {[%clk 0:01:51]} 23... Qd7
{[%clk 0:01:16.1]} 24. Rc4 {[%clk 0:01:51.9]} 24... g5 {[%clk 0:01:04.4]} 25.
Qd1 {[%clk 0:01:50.6]} 25... Nxd3 {[%clk 0:00:59.3]} 26. Bg4 {[%clk 0:01:51.6]}
26... Qe7 {[%clk 0:00:50.8]} 27. Be6+ {[%clk 0:01:52.7]} 27... Kh8 {[%clk
0:00:50]} 28. Ne4 {[%clk 0:01:53.6]} 28... f3+ {[%clk 0:00:45.5]} 29. Kh2 {[%clk
0:01:50.6]} 29... Nc5 {[%clk 0:00:33.9]} 30. Nxc5 {[%clk 0:01:42.6]} 30... dxc5
{[%clk 0:00:34.3]} 31. hxg5 {[%clk 0:01:43.4]} 31... Qxg5 {[%clk 0:00:27.7]} 32.
Rh1 {[%clk 0:01:44.8]} 32... Rae8 {[%clk 0:00:17.1]} 33. Rg4 {[%clk 0:01:42.4]}
33... Qf6 {[%clk 0:00:15.6]} 34. Kg1 {[%clk 0:01:43.5]} 34... Rxe6 {[%clk
0:00:15.7]} 35. dxe6 {[%clk 0:01:45.1]} 35... Qxe6 {[%clk 0:00:17.5]} 36. Rgh4
{[%clk 0:01:46.1]} 36... e4 {[%clk 0:00:17.6]} 37. Qd2 {[%clk 0:01:46.9]} 37...
Rf6 {[%clk 0:00:11.4]} 38. Qe3 {[%clk 0:01:47.8]} 38... Kh7 {[%clk 0:00:12.4]}
39. Rxe4 {[%clk 0:01:49.2]} 39... Qc6 {[%clk 0:00:09.8]} 40. Re7 {[%clk
0:01:49.8]} 40... Kg8 {[%clk 0:00:07.8]} 41. Rh4 {[%clk 0:01:47]} 41... Rf8
{[%clk 0:00:08.4]} 42. Rg4 {[%clk 0:01:47.6]} 42... Rf7 {[%clk 0:00:07.9]} 43.
Rxf7 {[%clk 0:01:46.8]} 43... Kxf7 {[%clk 0:00:09]} 44. Rf4+ {[%clk 0:01:48.6]}
44... Kg8 {[%clk 0:00:09.9]} 45. Qe7 {[%clk 0:01:48.9]} 45... Qd5 {[%clk
0:00:08.3]} 46. Kh2 {[%clk 0:01:43.4]} 46... Qh5+ {[%clk 0:00:08.8]} 47. Kg1
{[%clk 0:01:43.6]} 47... Qd5 {[%clk 0:00:10.4]} 48. Qe8+ {[%clk 0:01:44.4]}
48... Kh7 {[%clk 0:00:10.7]} 49. Qf7 {[%clk 0:01:45.4]} 49... Qxf7 {[%clk
0:00:10.8]} 50. Rxf7 {[%clk 0:01:46]} 50... Kg6 {[%clk 0:00:10.1]} 51. Rxb7
{[%clk 0:01:47.4]} 51... Bc3 {[%clk 0:00:09.4]} 52. Kh2 {[%clk 0:00:24.4]} 52...
Bb4 {[%clk 0:00:10.3]} 53. g4 {[%clk 0:00:25.6]} 53... c4 {[%clk 0:00:06.7]} 54.
Kg3 {[%clk 0:00:26.2]} 54... c3 {[%clk 0:00:07.5]} 55. Rc7 {[%clk 0:00:27.1]}
55... Bd6+ {[%clk 0:00:06.1]} 56. Kxf3 {[%clk 0:00:22.4]} 56... Bxc7 {[%clk
0:00:08]} 57. Ke3 {[%clk 0:00:23.8]} 57... Be5 {[%clk 0:00:09.1]} 58. f4 {[%clk
0:00:25.5]} 58... Bxf4+ {[%clk 0:00:09.9]} 59. Kd3 {[%clk 0:00:26.2]} 59... Bd2
{[%clk 0:00:10.3]} 0-1

[Event "*** Titled Tuesday Blitz"]
[Site "Chess.com"]
[Date "2019.11.05"]
[Round "5"]
[White "1995Tiger"]
[Black "Cruel_Yaro"]
[Result "1/2-1/2"]
[WhiteElo "2124"]
[BlackElo "2867"]
[TimeControl "180+2"]
[EndTime "14:09:57 PST"]
[Termination "Game drawn by repetition"]

1. d4 {[%clk 0:03:01.9]} 1... Nf6 {[%clk 0:03:00]} 2. c4 {[%clk 0:03:03]} 2...
g6 {[%clk 0:03:00.3]} 3. Nf3 {[%clk 0:03:03.6]} 3... Bg7 {[%clk 0:03:00]} 4. g3
{[%clk 0:03:05.1]} 4... O-O {[%clk 0:02:56.4]} 5. Bg2 {[%clk 0:03:06.3]} 5... d6
{[%clk 0:02:57.8]} 6. O-O {[%clk 0:03:07.3]} 6... Nc6 {[%clk 0:02:57.3]} 7. Nc3
{[%clk 0:03:08]} 7... a6 {[%clk 0:02:57.9]} 8. b3 {[%clk 0:03:04.3]} 8... Bg4
{[%clk 0:02:51.7]} 9. Bb2 {[%clk 0:02:57.7]} 9... Nd7 {[%clk 0:02:47.8]} 10. d5
{[%clk 0:02:55.5]} 10... Na7 {[%clk 0:02:47.1]} 11. Nd4 {[%clk 0:02:43.2]} 11...
Nb6 {[%clk 0:02:42.5]} 12. h3 {[%clk 0:02:41]} 12... Bd7 {[%clk 0:02:42.5]} 13.
e4 {[%clk 0:02:42]} 13... c5 {[%clk 0:02:30.2]} 14. Nc2 {[%clk 0:02:36.9]} 14...
e5 {[%clk 0:02:20.6]} 15. dxe6 {[%clk 0:02:29.4]} 15... Bxe6 {[%clk 0:02:20.9]}
16. f4 {[%clk 0:02:17.2]} 16... f5 {[%clk 0:02:13.9]} 17. exf5 {[%clk
0:02:14.9]} 17... Bxf5 {[%clk 0:02:14.3]} 18. g4 {[%clk 0:02:11.2]} 18... Bxc2
{[%clk 0:02:11.5]} 19. Qxc2 {[%clk 0:02:12.2]} 19... Nc6 {[%clk 0:02:12.9]} 20.
Bxc6 {[%clk 0:02:06.2]} 20... bxc6 {[%clk 0:02:13.2]} 21. Ne4 {[%clk 0:02:07.6]}
21... Bxb2 {[%clk 0:01:51.2]} 22. Qxb2 {[%clk 0:02:08.2]} 22... Qh4 {[%clk
0:01:40.4]} 23. Qg2 {[%clk 0:02:02.9]} 23... d5 {[%clk 0:01:34.9]} 24. Nxc5
{[%clk 0:01:42.6]} 24... Qe7 {[%clk 0:01:34.1]} 25. Qf2 {[%clk 0:01:33.6]} 25...
dxc4 {[%clk 0:01:15.5]} 26. Rae1 {[%clk 0:01:31.4]} 26... Qa7 {[%clk 0:01:15]}
27. Ne6 {[%clk 0:01:23.2]} 27... Rf7 {[%clk 0:01:11.6]} 28. Kh2 {[%clk
0:01:13.7]} 28... cxb3 {[%clk 0:01:11.5]} 29. axb3 {[%clk 0:01:15.6]} 29... Nd5
{[%clk 0:01:11.6]} 30. Qxa7 {[%clk 0:00:40.5]} 30... Rfxa7 {[%clk 0:01:12.1]}
31. f5 {[%clk 0:00:38.6]} 31... gxf5 {[%clk 0:01:12.2]} 32. gxf5 {[%clk
0:00:39.4]} 32... Nf6 {[%clk 0:01:10.6]} 33. Rg1+ {[%clk 0:00:39.1]} 33... Kh8
{[%clk 0:01:10.5]} 34. Nc5 {[%clk 0:00:40]} 34... Rf7 {[%clk 0:01:07.8]} 35. Re6
{[%clk 0:00:34.3]} 35... Nd5 {[%clk 0:01:07.7]} 36. Rxc6 {[%clk 0:00:33.4]}
36... Rxf5 {[%clk 0:01:08.5]} 37. Rxa6 {[%clk 0:00:32.8]} 37... Rc8 {[%clk
0:01:07.4]} 38. Ne6 {[%clk 0:00:29.6]} 38... Ne3 {[%clk 0:01:03]} 39. Ra2 {[%clk
0:00:28.4]} 39... Rf3 {[%clk 0:00:49.7]} 40. Ng5 {[%clk 0:00:23.9]} 40... Rf5
{[%clk 0:00:50]} 41. Re2 {[%clk 0:00:23.9]} 41... Nf1+ {[%clk 0:00:42.6]} 42.
Kh1 {[%clk 0:00:20.4]} 42... h6 {[%clk 0:00:42.7]} 43. Re1 {[%clk 0:00:18.1]}
43... Nd2 {[%clk 0:00:37.8]} 44. Ne4 {[%clk 0:00:16.7]} 44... Nf3 {[%clk
0:00:35.1]} 45. Nd6 {[%clk 0:00:17.7]} 45... Nxg1 {[%clk 0:00:24.1]} 46. Nxf5
{[%clk 0:00:18]} 46... Nxh3 {[%clk 0:00:23.9]} 47. Nxh6 {[%clk 0:00:16.3]} 47...
Rc3 {[%clk 0:00:23.7]} 48. Nf5 {[%clk 0:00:14.2]} 48... Rxb3 {[%clk 0:00:23]}
49. Re3 {[%clk 0:00:15.4]} 49... Rb1+ {[%clk 0:00:20.9]} 50. Kh2 {[%clk
0:00:16.5]} 50... Nf4 {[%clk 0:00:21.7]} 51. Kg3 {[%clk 0:00:17.8]} 51... Ng6
{[%clk 0:00:21.6]} 52. Re6 {[%clk 0:00:17.4]} 52... Kh7 {[%clk 0:00:20.2]} 53.
Ra6 {[%clk 0:00:17.8]} 53... Rb4 {[%clk 0:00:18.2]} 54. Ra7+ {[%clk 0:00:17.8]}
54... Kh8 {[%clk 0:00:18.2]} 55. Ne7 {[%clk 0:00:18.7]} 55... Ne5 {[%clk
0:00:14.4]} 56. Nd5 {[%clk 0:00:17.5]} 56... Rg4+ {[%clk 0:00:14.6]} 57. Kh3
{[%clk 0:00:17.9]} 57... Rg6 {[%clk 0:00:13.6]} 58. Re7 {[%clk 0:00:17.4]} 58...
Nf3 {[%clk 0:00:13.8]} 59. Ra7 {[%clk 0:00:16.8]} 59... Ne5 {[%clk 0:00:09]} 60.
Nf4 {[%clk 0:00:16.8]} 60... Rf6 {[%clk 0:00:08.1]} 61. Nd5 {[%clk 0:00:17.8]}
61... Rd6 {[%clk 0:00:08.5]} 62. Nf4 {[%clk 0:00:18.2]} 62... Kg8 {[%clk
0:00:09.5]} 63. Kg3 {[%clk 0:00:17.2]} 63... Nf7 {[%clk 0:00:09.9]} 64. Kf3
{[%clk 0:00:16.6]} 64... Kg7 {[%clk 0:00:10.6]} 65. Ke4 {[%clk 0:00:17.8]} 65...
Kf6 {[%clk 0:00:11.1]} 66. Nh5+ {[%clk 0:00:18.6]} 66... Kg6 {[%clk 0:00:12.1]}
67. Nf4+ {[%clk 0:00:19.9]} 67... Kf6 {[%clk 0:00:13.2]} 68. Nd5+ {[%clk
0:00:21]} 68... Kg6 {[%clk 0:00:12.2]} 69. Ne7+ {[%clk 0:00:20.8]} 69... Kf6
{[%clk 0:00:12.6]} 70. Nd5+ {[%clk 0:00:21.8]} 70... Kg6 {[%clk 0:00:13.4]} 71.
Nf4+ {[%clk 0:00:22.8]} 71... Kf6 {[%clk 0:00:13.8]} 1/2-1/2

[Event "*** Titled Tuesday Blitz"]
[Site "Chess.com"]
[Date "2019.11.05"]
[Round "5"]
[White "TregubovP"]
[Black "LuckIsMySkill"]
[Result "0-1"]
[WhiteElo "2537"]
[BlackElo "2770"]
[TimeControl "180+2"]
[EndTime "14:10:10 PST"]
[Termination "LuckIsMySkill won by resignation"]

1. e4 {[%clk 0:03:01.9]} 1... g6 {[%clk 0:02:49.2]} 2. d4 {[%clk 0:03:01.7]}
2... Bg7 {[%clk 0:02:49.9]} 3. Nf3 {[%clk 0:03:02.8]} 3... d6 {[%clk 0:02:50.9]}
4. Nc3 {[%clk 0:03:03.2]} 4... a6 {[%clk 0:02:51.8]} 5. Be2 {[%clk 0:02:54.9]}
5... b5 {[%clk 0:02:52.5]} 6. O-O {[%clk 0:02:53.1]} 6... Bb7 {[%clk 0:02:52.3]}
7. Re1 {[%clk 0:02:50.9]} 7... Nd7 {[%clk 0:02:53]} 8. Bf1 {[%clk 0:02:40]} 8...
c5 {[%clk 0:02:52.7]} 9. d5 {[%clk 0:02:31]} 9... Ngf6 {[%clk 0:02:34.3]} 10. h3
{[%clk 0:02:30.2]} 10... O-O {[%clk 0:02:34.8]} 11. Bf4 {[%clk 0:02:31]} 11...
b4 {[%clk 0:02:27]} 12. Na4 {[%clk 0:02:24.4]} 12... Nb6 {[%clk 0:02:27.7]} 13.
Nxb6 {[%clk 0:02:23.2]} 13... Qxb6 {[%clk 0:02:29.6]} 14. c4 {[%clk 0:02:17]}
14... bxc3 {[%clk 0:02:20.4]} 15. bxc3 {[%clk 0:02:17.6]} 15... c4 {[%clk
0:02:18.9]} 16. Rb1 {[%clk 0:02:12.5]} 16... Qc7 {[%clk 0:02:19.3]} 17. Qa4
{[%clk 0:02:05.3]} 17... Nd7 {[%clk 0:02:15.3]} 18. Qxc4 {[%clk 0:02:02.5]}
18... Rfc8 {[%clk 0:02:12.4]} 19. Qxc7 {[%clk 0:01:52.8]} 19... Rxc7 {[%clk
0:02:14.3]} 20. c4 {[%clk 0:01:54.1]} 20... a5 {[%clk 0:02:13.9]} 21. e5 {[%clk
0:01:52.3]} 21... dxe5 {[%clk 0:01:51.9]} 22. Nxe5 {[%clk 0:01:53.2]} 22... Nxe5
{[%clk 0:01:08.7]} 23. Bxe5 {[%clk 0:01:54.2]} 23... Bxe5 {[%clk 0:01:10.6]} 24.
Rxe5 {[%clk 0:01:55.3]} 24... Kf8 {[%clk 0:01:10.9]} 25. Rb5 {[%clk 0:01:39.9]}
25... a4 {[%clk 0:01:05.5]} 26. c5 {[%clk 0:01:40.2]} 26... f6 {[%clk
0:01:06.4]} 27. d6 {[%clk 0:01:34]} 27... exd6 {[%clk 0:00:58.2]} 28. cxd6
{[%clk 0:01:35.2]} 28... Rd7 {[%clk 0:00:59.6]} 29. Re7 {[%clk 0:01:35.1]} 29...
Bc6 {[%clk 0:00:59]} 30. Rxd7 {[%clk 0:01:30.2]} 30... Bxd7 {[%clk 0:01:00.9]}
31. Rb7 {[%clk 0:01:31.3]} 31... Rd8 {[%clk 0:01:01.5]} 32. Bc4 {[%clk
0:01:29.6]} 32... h5 {[%clk 0:00:46.8]} 33. f4 {[%clk 0:01:23]} 33... Be8 {[%clk
0:00:46.6]} 34. Rb6 {[%clk 0:01:24.2]} 34... Bf7 {[%clk 0:00:37.1]} 35. Bxf7
{[%clk 0:01:22.7]} 35... Kxf7 {[%clk 0:00:39]} 36. Ra6 {[%clk 0:01:21.8]} 36...
Ke6 {[%clk 0:00:37.1]} 37. Rxa4 {[%clk 0:01:13.7]} 37... Rxd6 {[%clk 0:00:38.1]}
38. Kf2 {[%clk 0:01:12.1]} 38... Rd2+ {[%clk 0:00:38]} 39. Kf3 {[%clk
0:01:12.5]} 39... h4 {[%clk 0:00:38.5]} 40. Re4+ {[%clk 0:01:10.2]} 40... Kf5
{[%clk 0:00:34.2]} 41. Re2 {[%clk 0:01:11.2]} 41... Rd4 {[%clk 0:00:26.9]} 42.
g4+ {[%clk 0:01:07.4]} 42... hxg3 {[%clk 0:00:27.7]} 43. Kxg3 {[%clk 0:01:08.7]}
43... Rd3+ {[%clk 0:00:29]} 44. Kg2 {[%clk 0:01:05.7]} 44... Kxf4 {[%clk
0:00:29.8]} 45. Rf2+ {[%clk 0:01:05.7]} 45... Kg5 {[%clk 0:00:30.7]} 46. Rb2
{[%clk 0:01:06.4]} 46... f5 {[%clk 0:00:30.5]} 47. a4 {[%clk 0:01:02.4]} 47...
Ra3 {[%clk 0:00:30.2]} 48. Rb4 {[%clk 0:01:03.7]} 48... Kh5 {[%clk 0:00:31]} 49.
Kh2 {[%clk 0:01:03.8]} 49... g5 {[%clk 0:00:30.8]} 50. Kg2 {[%clk 0:00:50.5]}
50... f4 {[%clk 0:00:31.4]} 51. Rb8 {[%clk 0:00:42.3]} 51... Rxa4 {[%clk
0:00:25.2]} 52. Rh8+ {[%clk 0:00:42.3]} 52... Kg6 {[%clk 0:00:26.4]} 53. Rg8+
{[%clk 0:00:42.6]} 53... Kf6 {[%clk 0:00:25]} 54. Rf8+ {[%clk 0:00:42.2]} 54...
Kg7 {[%clk 0:00:26.1]} 55. Rb8 {[%clk 0:00:41.2]} 55... Ra3 {[%clk 0:00:14]} 56.
Rc8 {[%clk 0:00:40.5]} 56... Rg3+ {[%clk 0:00:10.6]} 57. Kh2 {[%clk 0:00:41]}
57... Kg6 {[%clk 0:00:12.2]} 58. Ra8 {[%clk 0:00:35.5]} 58... Re3 {[%clk
0:00:12]} 59. Kg2 {[%clk 0:00:35.5]} 59... Kf5 {[%clk 0:00:12.7]} 60. Rf8+
{[%clk 0:00:35.2]} 60... Ke4 {[%clk 0:00:14]} 61. Re8+ {[%clk 0:00:33.9]} 61...
Kd3 {[%clk 0:00:14.5]} 62. Rg8 {[%clk 0:00:27.3]} 62... Ke2 {[%clk 0:00:09.6]}
63. Ra8 {[%clk 0:00:15.5]} 63... f3+ {[%clk 0:00:07.2]} 64. Kh2 {[%clk
0:00:16.1]} 64... f2 {[%clk 0:00:07.8]} 65. Ra2+ {[%clk 0:00:16.8]} 65... Kf3
{[%clk 0:00:09.2]} 66. Ra1 {[%clk 0:00:14.3]} 66... Re1 {[%clk 0:00:10.3]} 67.
Ra3+ {[%clk 0:00:15.1]} 67... Ke4 {[%clk 0:00:11.6]} 0-1

[Event "*** Titled Tuesday Blitz"]
[Site "Chess.com"]
[Date "2019.11.05"]
[Round "5"]
[White "Aygehovit1992"]
[Black "Gabrielian_Artur"]
[Result "1-0"]
[WhiteElo "2617"]
[BlackElo "2813"]
[TimeControl "180+2"]
[EndTime "14:10:22 PST"]
[Termination "Aygehovit1992 won on time"]

1. e4 {[%clk 0:03:01.9]} 1... c5 {[%clk 0:03:00.5]} 2. Nf3 {[%clk 0:03:02.6]}
2... d6 {[%clk 0:02:59.4]} 3. d4 {[%clk 0:03:03]} 3... cxd4 {[%clk 0:03:00.6]}
4. Nxd4 {[%clk 0:03:04.9]} 4... Nf6 {[%clk 0:03:01.9]} 5. Nc3 {[%clk 0:03:06.5]}
5... Nc6 {[%clk 0:03:03]} 6. Be2 {[%clk 0:03:03.5]} 6... e5 {[%clk 0:02:58.3]}
7. Nb3 {[%clk 0:02:52.3]} 7... Be7 {[%clk 0:02:58.8]} 8. O-O {[%clk 0:02:52.6]}
8... O-O {[%clk 0:02:59.7]} 9. Bg5 {[%clk 0:02:54.1]} 9... Be6 {[%clk
0:02:58.2]} 10. Bf3 {[%clk 0:02:45.6]} 10... a6 {[%clk 0:02:54.5]} 11. Bxf6
{[%clk 0:02:39.8]} 11... Bxf6 {[%clk 0:02:55.1]} 12. Nd5 {[%clk 0:02:41.3]}
12... Bg5 {[%clk 0:02:56.2]} 13. Bg4 {[%clk 0:02:40.8]} 13... Kh8 {[%clk
0:02:49.2]} 14. a4 {[%clk 0:02:35.3]} 14... Ne7 {[%clk 0:02:49.8]} 15. Bxe6
{[%clk 0:02:18.8]} 15... fxe6 {[%clk 0:02:49.5]} 16. Nxe7 {[%clk 0:02:20.7]}
16... Qxe7 {[%clk 0:02:48.8]} 17. a5 {[%clk 0:02:20.9]} 17... Rf4 {[%clk
0:02:41]} 18. Nd2 {[%clk 0:02:10.2]} 18... Raf8 {[%clk 0:02:33.8]} 19. Ra3
{[%clk 0:02:04.4]} 19... d5 {[%clk 0:02:32.5]} 20. g3 {[%clk 0:01:56.5]} 20...
R4f7 {[%clk 0:02:25.2]} 21. Nf3 {[%clk 0:01:51.1]} 21... dxe4 {[%clk 0:02:23.6]}
22. Nxe5 {[%clk 0:01:45.1]} 22... Rf5 {[%clk 0:02:24.6]} 23. Ng4 {[%clk
0:01:38.8]} 23... Qc5 {[%clk 0:02:02.5]} 24. Qe2 {[%clk 0:01:28.9]} 24... h5
{[%clk 0:01:52.6]} 25. Ne3 {[%clk 0:01:27.7]} 25... Bxe3 {[%clk 0:01:49.3]} 26.
Rxe3 {[%clk 0:01:25.5]} 26... Qxa5 {[%clk 0:01:33.3]} 27. Rxe4 {[%clk
0:01:26.5]} 27... e5 {[%clk 0:01:34.8]} 28. b4 {[%clk 0:01:07.4]} 28... Qb6
{[%clk 0:01:16.8]} 29. c3 {[%clk 0:00:54.2]} 29... Qf6 {[%clk 0:01:06]} 30. Kg2
{[%clk 0:00:49.4]} 30... b5 {[%clk 0:01:02.6]} 31. f3 {[%clk 0:00:45.4]} 31...
Kh7 {[%clk 0:01:03.6]} 32. Re3 {[%clk 0:00:44.3]} 32... Rf7 {[%clk 0:00:58.6]}
33. Re1 {[%clk 0:00:45]} 33... g6 {[%clk 0:00:57.4]} 34. Rd1 {[%clk 0:00:45.2]}
34... Qc6 {[%clk 0:00:53.9]} 35. Rdd3 {[%clk 0:00:41.3]} 35... Qc4 {[%clk
0:00:46.4]} 36. Re4 {[%clk 0:00:38.7]} 36... Qc7 {[%clk 0:00:45.3]} 37. Rde3
{[%clk 0:00:39]} 37... Qc6 {[%clk 0:00:39.2]} 38. Rd3 {[%clk 0:00:29.7]} 38...
Qf6 {[%clk 0:00:27.8]} 39. Rde3 {[%clk 0:00:24.5]} 39... Qc6 {[%clk 0:00:28.1]}
40. Rd3 {[%clk 0:00:25.3]} 40... Qf6 {[%clk 0:00:21.2]} 41. h3 {[%clk 0:00:24]}
41... Kg7 {[%clk 0:00:21]} 42. g4 {[%clk 0:00:21.4]} 42... hxg4 {[%clk
0:00:21.7]} 43. hxg4 {[%clk 0:00:22.5]} 43... Qg5 {[%clk 0:00:18.9]} 44. Rde3
{[%clk 0:00:21.2]} 44... Rd7 {[%clk 0:00:09.3]} 45. Rxe5 {[%clk 0:00:17]} 45...
Rxe5 {[%clk 0:00:09.1]} 46. Rxe5 {[%clk 0:00:18.9]} 46... Rd2 {[%clk 0:00:10.3]}
47. Rxg5 {[%clk 0:00:18.9]} 47... Rxe2+ {[%clk 0:00:11.7]} 48. Kg3 {[%clk
0:00:20.8]} 48... Rc2 {[%clk 0:00:12.5]} 49. Rc5 {[%clk 0:00:22.3]} 49... Kf6
{[%clk 0:00:09.5]} 50. Kf4 {[%clk 0:00:23.3]} 50... g5+ {[%clk 0:00:11]} 51.
Rxg5 {[%clk 0:00:21.5]} 51... Rxc3 {[%clk 0:00:12.3]} 52. Rc5 {[%clk 0:00:22.7]}
52... Rb3 {[%clk 0:00:10.2]} 53. Rc6+ {[%clk 0:00:23.1]} 53... Kf7 {[%clk
0:00:10.6]} 54. g5 {[%clk 0:00:24.4]} 54... Rxb4+ {[%clk 0:00:09.3]} 55. Kf5
{[%clk 0:00:25.7]} 55... Rc4 {[%clk 0:00:10.8]} 56. Rxa6 {[%clk 0:00:25.4]}
56... Rc5+ {[%clk 0:00:11.5]} 57. Kg4 {[%clk 0:00:26]} 57... Rc1 {[%clk
0:00:06.3]} 58. Rb6 {[%clk 0:00:25.4]} 58... Rb1 {[%clk 0:00:06.7]} 59. g6+
{[%clk 0:00:26.6]} 59... Kg7 {[%clk 0:00:06.8]} 60. Kf5 {[%clk 0:00:27.8]} 60...
b4 {[%clk 0:00:07]} 61. Rb7+ {[%clk 0:00:28.3]} 61... Kf8 {[%clk 0:00:05.2]} 62.
Kf6 {[%clk 0:00:29.2]} 62... Ke8 {[%clk 0:00:02.1]} 63. g7 {[%clk 0:00:29.5]}
1-0